fUSD/lending_fUSD_20241216
["ID","MTS","AMOUNT","RATE_DAILY","PERIOD"]
[345575442,1734364232197,-3000.0,0.000238,2]
[345575443,1734364232207,-14841.0,0.00023894,2]
[345575444,1734364232216,-1822.76719665,0.000239,2]
[345575445,1734364232225,-1822.83117491,0.000239,2]
[345575446,1734364232236,-2500.0,0.000239,2]
[345575447,1734364232246,-200.0,0.000239,8]
[345575448,1734364232255,-327.38841368,0.00023911,2]
[345575449,1734364232266,-189.50874179,0.00023916,5]
[345575450,1734364232277,-1752.481,0.00023916,5]
[345575451,1734364232287,-364.2320931,0.00024,30]
[345575452,1734364232296,-52515.7985285,0.00024,2]
[345575453,1734364232308,-2634.2014715,0.00024,2]
[345575454,1734364232317,-130000.00398881,0.00024,16]
[345575455,1734364232329,-70403.68031827,0.00024,15]
[345575463,1734364237640,-515.28705452,0.00024,15]
[345575464,1734364237651,-766.34341095,0.00024,15]
[345575465,1734364237744,-28314.68921626,0.00024,15]
[345575466,1734364237754,-2500.0,0.00024,7]
[345575467,1734364237764,-500.0,0.00024,8]
[345575468,1734364237773,-1822.76719657,0.00024011,2]
[345575469,1734364237783,-1822.83117488,0.00024011,2]
[345575470,1734364237794,-327.38841362,0.00024021,2]
[345575471,1734364237803,-5000.0,0.00024078,2]
[345575472,1734364237812,-800.0,0.000241,8]
[345575473,1734364237822,-1822.76719657,0.00024122,2]
[345575474,1734364237831,-1822.83117488,0.00024122,2]
[345575475,1734364237841,-327.38841362,0.00024131,2]
[345575476,1734364237851,-1100.0,0.000242,8]
[345575477,1734364237861,-366.72121186,0.00024226,2]
[345575478,1734364237871,-1822.76719657,0.00024233,2]
[345575479,1734364237880,-1822.83117488,0.00024233,2]
[345575480,1734364237890,-327.38841362,0.00024241,2]
[345575481,1734364237900,-576.0,0.00024249,2]
[345575482,1734364237909,-1400.0,0.000243,8]
[345575483,1734364237921,-2500.0,0.00024323,2]
[345575484,1734364237930,-1822.76719657,0.00024344,2]
[345575485,1734364237940,-1822.83117488,0.00024344,2]
[345575486,1734364237950,-327.38841362,0.00024351,2]
[345575487,1734364237960,-1167.09,0.0002439,2]
[345575488,1734364237969,-200.0,0.000244,8]
[345575489,1734364237980,-1822.76719657,0.00024456,2]
[345575490,1734364237990,-1822.83117488,0.00024456,2]
[345575491,1734364237999,-327.38841362,0.0002446,2]
[345575492,1734364238009,-576.0,0.00024499,2]
[345575493,1734364238019,-200.0,0.000245,8]
[345575494,1734364238028,-4986.8266,0.00024525,2]
[345575495,1734364238037,-366.72121186,0.00024552,2]
[345575496,1734364238047,-1822.76719657,0.00024567,2]
[345575497,1734364238056,-1822.83117488,0.00024567,2]
[345575498,1734364238066,-327.38841362,0.0002457,2]
[345575499,1734364238076,-200.0,0.000246,8]
[345575500,1734364238085,-151.24,0.00024615,2]
[345575501,1734364238094,-878.791002,0.00024615,2]
[345575502,1734364238103,-25750.18581313,0.00024625,2]
[345575503,1734364238115,-3245.70419,0.00024625,2]
[345575504,1734364238126,-72800.90023569,0.00024625,2]
[345575505,1734364238139,-16076.74920302,0.00024625,2]
[345575506,1734364238152,-52874.99999999,0.00024625,2]
[345575507,1734364238170,-1050.99078102,0.00024625,2]
[345575508,1734364238182,-5013.1949385,0.00024625,2]
[345575509,1734364238194,-384.36744944,0.00024625,2]
[345575510,1734364238205,-1604.42642007,0.00024625,2]
[345575511,1734364238931,-138158.95377681,0.00024625,2]
[345575512,1734364238942,-2297.01,0.00024631,2]
[345575513,1734364238952,-500.0,0.00024657,4]
[345575514,1734364238962,-235.4756063,0.00024657,4]
[345575515,1734364238971,-500.0,0.00024657,4]
[345575516,1734364238980,-375.75514555,0.00024657,4]
[345575517,1734364238989,-505.55,0.00024657,4]
[345575518,1734364238999,-500.0,0.00024657,4]
[345575519,1734364239008,-500.0,0.00024657,4]
[345575520,1734364239018,-500.0,0.00024657,4]
[345575522,1734364239028,-500.0,0.00024657,4]
[345575524,1734364239037,-500.0,0.00024657,4]
[345575526,1734364239046,-647.41385273,0.00024657,4]
[345575528,1734364239056,-500.0,0.00024657,4]
[345575530,1734364239065,-500.0,0.00024657,4]
[345575532,1734364239074,-511.33270797,0.00024657,4]
[345575534,1734364239084,-502.4534753,0.00024657,4]
[345575536,1734364239094,-507.59247359,0.00024657,4]
[345575538,1734364239104,-500.0,0.00024657,4]
[345575540,1734364239114,-500.0,0.00024657,4]
[345575542,1734364239124,-500.0,0.00024657,4]
[345575544,1734364239134,-504.60748959,0.00024657,4]
[345575546,1734364239144,-500.0,0.00024657,4]
[345575548,1734364239153,-595.63415912,0.00024657,4]
[345575550,1734364239165,-500.0,0.00024657,4]
[345575552,1734364239179,-506.06975756,0.00024657,4]
[345575554,1734364239188,-503.27135294,0.00024657,4]
[345575556,1734364239197,-500.0,0.00024657,4]
[345575558,1734364239207,-500.0,0.00024657,4]
[345575560,1734364239216,-500.0,0.00024657,4]
[345575562,1734364239225,-510.59585055,0.00024657,4]
[345575564,1734364239234,-500.0,0.00024657,4]
[345575566,1734364239244,-500.0,0.00024657,4]
[345575568,1734364239253,-512.10766388,0.00024657,4]
[345575570,1734364239263,-500.0,0.00024657,4]
[345575572,1734364239273,-500.0,0.00024657,4]
[345575574,1734364239282,-500.0,0.00024657,4]
[345575576,1734364239292,-500.0,0.00024657,4]
[345575578,1734364239301,-500.0,0.00024657,4]
[345575580,1734364239311,-500.0,0.00024657,4]
[345575582,1734364239319,-500.0,0.00024657,4]
[345575583,1734364239328,-504.23288041,0.00024657,4]
[345575584,1734364239338,-500.0,0.00024657,4]
[345575585,1734364239347,-184.62,0.00024657,4]
[345575586,1734364239356,-500.0,0.00024657,4]
[345575587,1734364239365,-500.0,0.00024657,4]
[345575588,1734364239374,-500.0,0.00024657,4]
[345575589,1734364239384,-500.0,0.00024657,4]
[345575590,1734364239393,-500.0,0.00024657,4]
[345575591,1734364239403,-500.0,0.00024657,4]
[345575592,1734364239413,-500.0,0.00024657,4]
[345575593,1734364239425,-500.0,0.00024657,4]
[345575594,1734364239436,-500.0,0.00024657,4]
[345575595,1734364239445,-500.0,0.00024657,4]
[345575596,1734364239455,-500.0,0.00024657,4]
[345575597,1734364239464,-613.17958088,0.00024657,4]
[345575598,1734364239475,-506.01752778,0.00024657,4]
[345575599,1734364239484,-508.64236144,0.00024657,4]
[345575600,1734364239493,-500.0,0.00024657,4]
[345575601,1734364239503,-500.0,0.00024657,4]
[345575602,1734364239514,-500.0,0.00024657,4]
[345575603,1734364239523,-500.0,0.00024657,4]
[345575604,1734364239533,-417.41803503,0.00024657,4]
[345575605,1734364239543,-500.0,0.00024657,4]
[345575607,1734364239553,-500.0,0.00024657,4]
[345575608,1734364239563,-503.26834866,0.00024657,4]
[345575609,1734364239573,-500.0,0.00024657,4]
[345575610,1734364239582,-159.03,0.00024657,4]
[345575611,1734364239592,-500.0,0.00024657,4]
[345575612,1734364239602,-507.21368784,0.00024657,4]
[345575613,1734364239610,-500.0,0.00024657,4]
[345575614,1734364239619,-500.0,0.00024657,4]
[345575615,1734364239629,-500.0,0.00024657,4]
[345575616,1734364239638,-500.0,0.00024657,4]
[345575617,1734364239648,-500.0,0.00024657,4]
[345575618,1734364239659,-500.0,0.00024657,4]
[345575619,1734364239671,-500.0,0.00024657,4]
[345575620,1734364239682,-500.0,0.00024657,4]
[345575621,1734364239692,-500.0,0.00024657,4]
[345575622,1734364239702,-500.0,0.00024657,4]
[345575624,1734364239712,-500.0,0.00024657,4]
[345575626,1734364239722,-500.0,0.00024657,4]
[345575628,1734364239731,-500.0,0.00024657,4]
[345575630,1734364239741,-500.0,0.00024657,4]
[345575631,1734364239751,-500.0,0.00024657,4]
[345575632,1734364239761,-500.0,0.00024657,4]
[345575633,1734364239770,-459.82232047,0.00024657,4]
[345575634,1734364239780,-500.0,0.00024657,4]
[345575635,1734364239790,-500.0,0.00024657,4]
[345575636,1734364239800,-500.0,0.00024657,4]
[345575637,1734364239810,-529.75772594,0.00024657,4]
[345575638,1734364239819,-505.07318596,0.00024657,4]
[345575639,1734364239829,-500.0,0.00024657,4]
[345575640,1734364239839,-500.0,0.00024657,4]
[345575641,1734364239849,-500.0,0.00024657,4]
[345575642,1734364239859,-442.88334721,0.00024657,4]
[345575643,1734364239869,-504.70019115,0.00024657,4]
[345575644,1734364239879,-500.0,0.00024657,4]
[345575645,1734364239889,-500.0,0.00024657,4]
[345575646,1734364239898,-500.0,0.00024657,4]
[345575647,1734364239908,-500.0,0.00024657,4]
[345575648,1734364239921,-500.0,0.00024657,4]
[345575649,1734364239932,-500.0,0.00024657,4]
[345575650,1734364239942,-500.0,0.00024657,4]
[345575651,1734364239954,-500.0,0.00024657,4]
[345575652,1734364239964,-501.90021619,0.00024657,2]
[345575653,1734364239974,-500.0,0.00024657,4]
[345575654,1734364239983,-320.8645673,0.00024657,4]
[345575655,1734364239994,-500.0,0.00024657,4]
[345575656,1734364240004,-198.52,0.00024657,4]
[345575657,1734364240014,-500.0,0.00024657,4]
[345575658,1734364240023,-500.0,0.00024657,4]
[345575659,1734364240033,-500.0,0.00024657,4]
[345575660,1734364240042,-526.16,0.00024657,4]
[345575661,1734364240051,-501.20357419,0.00024657,4]
[345575662,1734364240060,-161.98,0.00024657,4]
[345575663,1734364240070,-500.0,0.00024657,4]
[345575664,1734364240079,-500.0,0.00024657,4]
[345575665,1734364240088,-500.0,0.00024657,4]
[345575666,1734364240098,-500.0,0.00024657,4]
[345575667,1734364240107,-500.0,0.00024657,4]
[345575668,1734364240117,-500.0,0.00024657,4]
[345575669,1734364240126,-500.0,0.00024657,4]
[345575670,1734364240135,-500.0,0.00024657,4]
[345575671,1734364240144,-500.68092975,0.00024657,4]
[345575672,1734364240153,-467.19799425,0.00024657,4]
[345575673,1734364240163,-500.0,0.00024657,4]
[345575674,1734364240175,-500.0,0.00024657,4]
[345575675,1734364240184,-551.05,0.00024657,4]
[345575676,1734364240193,-2889.04,0.00024658,2]
[345575677,1734364240202,-2500.0,0.00024662,2]
[345575678,1734364240211,-1822.76719657,0.00024678,2]
[345575679,1734364240220,-1822.83117488,0.00024678,2]
[345575680,1734364240229,-327.38841362,0.0002468,2]
[345575681,1734364240238,-420.0,0.00024682,2]
[345575682,1734364240247,-460.0,0.000247,2]
[345575683,1734364240256,-1200.0,0.000247,2]
[345575684,1734364240266,-200.0,0.000247,9]
[345575685,1734364240275,-1025.0,0.00024725,30]
[345575687,1734364240284,-150.0,0.0002473,2]
[345575689,1734364240294,-150.0,0.00024733,2]
[345575690,1734364240304,-150.0,0.00024734,2]
[345575691,1734364240314,-5000.0,0.00024734,2]
[345575693,1734364240323,-300.0,0.00024735,2]
[345575695,1734364240333,-150.0,0.00024736,2]
[345575697,1734364240342,-300.0,0.00024738,2]
[345575699,1734364240352,-150.0,0.00024741,2]
[345575701,1734364240361,-150.0,0.00024746,2]
[345575703,1734364240371,-576.0,0.00024749,2]
[345575705,1734364240380,-2676.63196,0.0002475,2]
[345575707,1734364240389,-1500.0,0.0002475,2]
[345575708,1734364240399,-11496.71643959,0.0002475,2]
[345575711,1734364240408,-150.0,0.00024754,2]
[345575712,1734364240423,-150.0,0.00024755,2]
[345575714,1734364240440,-150.0,0.00024755,2]
[345575717,1734364240450,-150.0,0.00024756,2]
[345575719,1734364240460,-151.24,0.00024758,2]
[345575720,1734364240470,-150.0,0.00024759,2]
[345575723,1734364240481,-1500.0,0.0002476,2]
[345575726,1734364240491,-150.0,0.0002476,2]
[345575727,1734364240500,-150.0,0.00024762,2]
[345575729,1734364240510,-150.0,0.00024763,2]
[345575731,1734364240520,-1500.0,0.00024767,2]
[345575733,1734364240529,-1500.0,0.00024768,2]
[345575735,1734364240539,-150.0,0.00024769,2]
[345575737,1734364240548,-1500.0,0.00024772,2]
[345575739,1734364240558,-1500.0,0.00024775,2]
[345575741,1734364240568,-150.0,0.00024783,2]
[345575743,1734364240578,-150.0,0.00024783,2]
[345575745,1734364240587,-1500.0,0.00024787,2]
[345575747,1734364240597,-4148.81,0.00024788,2]
[345575749,1734364240607,-1822.76719657,0.00024789,2]
[345575751,1734364240617,-1822.83117488,0.00024789,2]
[345575753,1734364240626,-150.0,0.00024789,2]
[345575755,1734364240636,-1000.0,0.0002479,30]
[345575757,1734364240646,-150.0,0.0002479,2]
[345575759,1734364240655,-327.38841362,0.0002479,2]
[345575761,1734364240669,-150.0,0.00024793,2]
[345575763,1734364240679,-150.0,0.00024794,2]
[345575765,1734364240689,-150.0,0.00024795,2]
[345575767,1734364240698,-150.0,0.00024796,2]
[345575769,1734364240707,-150.0,0.00024797,2]
[345575770,1734364240717,-150.0,0.00024797,2]
[345575772,1734364240726,-150.0,0.00024797,2]
[345575774,1734364240736,-1500.0,0.00024799,2]
[345575776,1734364240746,-39253.84911925,0.000248,2]
[345575778,1734364240755,-1153.0,0.000248,9]
[345575780,1734364240765,-150.0,0.00024805,2]
[345575782,1734364240775,-150.0,0.00024806,2]
[345575784,1734364240785,-150.0,0.00024813,2]
[345575786,1734364240794,-150.0,0.00024816,2]
[345575788,1734364240805,-1500.0,0.00024818,2]
[345575790,1734364240815,-150.0,0.00024819,2]
[345575792,1734364240824,-150.0,0.0002482,2]
[345575795,1734364240834,-150.0,0.00024823,2]
[345575796,1734364240844,-150.0,0.00024824,2]
[345575798,1734364240855,-150.0,0.00024824,2]
[345575800,1734364240863,-150.0,0.00024825,2]
[345575802,1734364240873,-150.0,0.00024825,2]
[345575804,1734364240883,-200.0,0.00024826,10]
[345575806,1734364240892,-42260.49925715,0.00024826,10]
[345575808,1734364240902,-693.44363447,0.00024826,10]
[345575810,1734364240911,-42730.51467038,0.00024826,10]
[345575812,1734364240923,-1446.33178613,0.00024826,10]
[345575814,1734364240933,-170.15,0.00024826,2]
[345575816,1734364240942,-554.58958292,0.00024827,10]
[345575818,1734364240952,-1500.0,0.00024827,2]
[345575820,1734364240962,-1223.01283555,0.00024827,10]
[345575823,1734364240971,-453.70700072,0.00024827,10]
[345575824,1734364240981,-200.0,0.00024828,10]
[345575826,1734364240990,-687.71404149,0.00024828,10]
[345575828,1734364241000,-416.06618069,0.00024828,10]
[345575830,1734364241010,-18726.24962054,0.00024828,10]
[345575832,1734364241019,-59888.86224661,0.00024828,10]
[345575834,1734364241029,-200.0,0.00024829,10]
[345575837,1734364241039,-17571.74660673,0.00024829,10]
[345575838,1734364241048,-89294.62190268,0.00024829,10]
[345575840,1734364241057,-1482.48624096,0.00024829,10]
[345575842,1734364241067,-11380.06650186,0.00024829,10]
[345575844,1734364241076,-22522.64694949,0.0002483,10]
[345575846,1734364241085,-200.0,0.0002483,10]
[345575848,1734364241095,-451.31272242,0.0002483,10]
[345575850,1734364241104,-150.0,0.0002483,2]
[345575852,1734364241114,-453.70700072,0.0002483,10]
[345575854,1734364241123,-1500.0,0.0002483,2]
[345575856,1734364241133,-11380.06650186,0.0002483,10]
[345575858,1734364241143,-3773.19290998,0.0002483,10]
[345575860,1734364241152,-1339.57909143,0.0002483,10]
[345575862,1734364241162,-687.71404149,0.00024831,10]
[345575864,1734364241173,-1500.0,0.00024831,2]
[345575866,1734364241182,-964.42438259,0.00024831,10]
[345575868,1734364241191,-42260.49925715,0.00024832,10]
[345575870,1734364241201,-849.73624369,0.00024832,10]
[345575872,1734364241211,-25268.42791727,0.00024832,10]
[345575874,1734364241220,-451.31272242,0.00024832,10]
[345575876,1734364241230,-631.27282586,0.00024832,10]
[345575878,1734364241239,-1019.18104279,0.00024833,10]
[345575880,1734364241249,-1019.18104279,0.00024833,10]
[345575882,1734364241259,-451.31272242,0.00024833,10]
[345575884,1734364241268,-13344.19675426,0.00024833,10]
[345575886,1734364241277,-1482.48624096,0.00024833,10]
[345575888,1734364241287,-74608.68349,0.00024833,10]
[345575890,1734364241296,-574.64154533,0.00024834,10]
[345575898,1734364241432,-200.0,0.00024834,10]
[345575900,1734364241446,-849.73624369,0.00024834,10]
[345575902,1734364241456,-234.91453106,0.00024834,10]
[345575904,1734364241465,-631.27282586,0.00024834,10]
[345575906,1734364241476,-404.99428245,0.00024834,10]
[345575908,1734364241485,-1500.0,0.00024835,2]
[345575910,1734364241494,-42260.49925715,0.00024836,10]
[345575912,1734364241503,-18726.24962054,0.00024836,10]
[345575914,1734364241514,-623.08172558,0.00024837,10]
[345575916,1734364241523,-25235.09458394,0.00024837,10]
[345575918,1734364241532,-67564.87453317,0.00024838,10]
[345575920,1734364241541,-230.92340581,0.00024838,10]
[345575922,1734364241550,-200.0,0.00024838,10]
[345575924,1734364241559,-150.0,0.00024838,2]
[345575926,1734364241569,-215.63641293,0.00024839,10]
[345575928,1734364241578,-10999.72122625,0.00024839,10]
[345575930,1734364241588,-150.0,0.00024839,2]
[345575932,1734364241597,-17495.42008644,0.00024839,10]
[345575934,1734364241606,-12362.36838691,0.00024839,10]
[345575936,1734364241615,-210.04367445,0.0002484,10]
[345575938,1734364241625,-71255.18191095,0.0002484,10]
[345575939,1734364241634,-757.66746973,0.0002484,10]
[345575942,1734364241643,-215.63641293,0.0002484,10]
[345575944,1734364241652,-67564.87453317,0.0002484,10]
[345575945,1734364241662,-74608.68349,0.0002484,10]
[345575947,1734364241674,-234.91453106,0.00024841,10]
[345575949,1734364241683,-59888.86224661,0.00024841,10]
[345575951,1734364241693,-25235.09458394,0.00024841,10]
[345575953,1734364241703,-6861.67106334,0.00024842,10]
[345575955,1734364241712,-757.66746973,0.00024842,10]
[345575957,1734364241721,-67564.87453317,0.00024842,10]
[345575959,1734364241730,-230.92340581,0.00024843,10]
[345575961,1734364241739,-10999.72122625,0.00024843,10]
[345575963,1734364241749,-451.31272242,0.00024843,10]
[345575965,1734364241758,-89294.62190268,0.00024843,10]
[345575967,1734364241767,-17571.74660673,0.00024843,10]
[345575969,1734364241776,-74608.68349,0.00024844,10]
[345575971,1734364241785,-1223.01283555,0.00024844,10]
[345575973,1734364241795,-10999.72122625,0.00024844,10]
[345575975,1734364241804,-818.23479736,0.00024844,10]
[345575977,1734364241813,-210.04367445,0.00024845,10]
[345575979,1734364241823,-15905.06070325,0.00024845,10]
[345575981,1734364241832,-964.42438259,0.00024845,10]
[345575983,1734364241842,-623.08172558,0.00024845,10]
[345575985,1734364241851,-1446.33178613,0.00024845,10]
[345575987,1734364241860,-17495.42008644,0.00024845,10]
[345575989,1734364241869,-22522.64694949,0.00024845,10]
[345575991,1734364241878,-623.08172558,0.00024845,10]
[345575993,1734364241887,-42730.51467038,0.00024845,10]
[345575995,1734364241897,-22522.64694949,0.00024846,10]
[345575997,1734364241906,-150.0,0.00024846,2]
[345575999,1734364241916,-13344.19675426,0.00024847,10]
[345576000,1734364241926,-10999.72122625,0.00024847,10]
[345576003,1734364241935,-71255.18191095,0.00024847,10]
[345576004,1734364241945,-2821.77709856,0.00024847,10]
[345576006,1734364241954,-18726.24962054,0.00024847,10]
[345576008,1734364241963,-200.0,0.00024847,10]
[345576011,1734364241972,-74608.68349,0.00024847,10]
[345576013,1734364241985,-200.0,0.00024848,10]
[345576015,1734364241994,-200.0,0.00024848,10]
[345576016,1734364242004,-1339.57909143,0.00024848,10]
[345576019,1734364242014,-150.0,0.00024848,2]
[345576020,1734364242023,-59888.86224661,0.00024848,10]
[345576023,1734364242032,-200.0,0.00024848,10]
[345576025,1734364242042,-827.63650331,0.00024848,10]
[345576026,1734364242052,-13344.19675426,0.00024849,10]
[345576028,1734364242061,-1482.48624096,0.00024849,10]
[345576030,1734364242071,-453.70700072,0.00024849,10]
[345576033,1734364242082,-623.08172558,0.00024849,10]
[345576035,1734364242091,-22522.64694949,0.0002485,10]
[345576037,1734364242101,-59888.86224661,0.0002485,10]
[345576038,1734364242110,-12362.36838691,0.0002485,10]
[345576041,1734364242119,-453.70700072,0.0002485,10]
[345576042,1734364242129,-1244.96254348,0.00024851,10]
[345576045,1734364242141,-200.0,0.00024851,10]
[345576047,1734364242151,-150.0,0.00024851,2]
[345576049,1734364242160,-150.0,0.00024851,2]
[345576051,1734364242172,-693.44363447,0.00024851,10]
[345576053,1734364242181,-12362.36838691,0.00024852,10]
[345576055,1734364242191,-453.70700072,0.00024852,10]
[345576057,1734364242201,-1073.57041301,0.00024852,10]
[345576059,1734364242210,-215.63641293,0.00024852,10]
[345576061,1734364242220,-416.06618069,0.00024853,10]
[345576063,1734364242229,-554.58958292,0.00024853,10]
[345576065,1734364242238,-827.63650331,0.00024853,10]
[345576067,1734364242248,-631.27282586,0.00024853,10]
[345576069,1734364242258,-1244.96254348,0.00024853,10]
[345576071,1734364242267,-200.0,0.00024853,10]
[345576073,1734364242276,-234.91453106,0.00024853,10]
[345576075,1734364242286,-1019.18104279,0.00024854,10]
[345576077,1734364242296,-1019.18104279,0.00024854,10]
[345576079,1734364242305,-71255.18191095,0.00024854,10]
[345576080,1734364242315,-150.0,0.00024854,2]
[345576082,1734364242324,-150.0,0.00024854,2]
[345576084,1734364242334,-234.91453106,0.00024854,10]
[345576086,1734364242343,-687.71404149,0.00024854,10]
[345576088,1734364242352,-205.64190539,0.00024855,10]
[345576090,1734364242362,-404.99428245,0.00024855,10]
[345576092,1734364242371,-150.0,0.00024855,2]
[345576094,1734364242380,-15905.06070325,0.00024855,10]
[345576096,1734364242389,-12362.36838691,0.00024855,10]
[345576098,1734364242400,-827.63650331,0.00024855,10]
[345576100,1734364242409,-200.0,0.00024856,10]
[345576102,1734364242420,-416.06618069,0.00024856,10]
[345576103,1734364242429,-215.63641293,0.00024856,10]
[345576104,1734364242442,-200.0,0.00024856,10]
[345576105,1734364242451,-22522.64694949,0.00024857,10]
[345576106,1734364242460,-15905.06070325,0.00024857,10]
[345576107,1734364242470,-150.70954901,0.00024857,2]
[345576108,1734364242479,-13344.19675426,0.00024857,10]
[345576109,1734364242487,-25268.42791727,0.00024858,10]
[345576111,1734364242496,-404.99428245,0.00024858,10]
[345576113,1734364242506,-18726.24962054,0.00024858,10]
[345576115,1734364242516,-200.0,0.00024858,10]
[345576117,1734364242526,-42730.51467038,0.00024859,10]
[345576119,1734364242535,-17571.74660673,0.00024859,10]
[345576121,1734364242544,-1073.57041301,0.00024859,10]
[345576123,1734364242554,-150.0,0.00024859,2]
[345576124,1734364242564,-200.0,0.00024859,10]
[345576126,1734364242574,-3773.19290998,0.00024859,10]
[345576127,1734364242584,-210.04367445,0.0002486,10]
[345576128,1734364242593,-964.42438259,0.0002486,10]
[345576129,1734364242602,-1446.33178613,0.0002486,10]
[345576130,1734364242611,-964.42438259,0.0002486,10]
[345576131,1734364242620,-1244.96254348,0.0002486,10]
[345576135,1734364242631,-13344.19675426,0.00024861,10]
[345576138,1734364242640,-205.64190539,0.00024861,10]
[345576141,1734364242650,-42260.49925715,0.00024861,10]
[345576144,1734364242659,-71255.18191095,0.00024861,10]
[345576147,1734364242670,-200.0,0.00024861,10]
[345576149,1734364242679,-1223.01283555,0.00024861,10]
[345576151,1734364242688,-200.0,0.00024862,10]
[345576153,1734364242698,-818.23479736,0.00024862,10]
[345576154,1734364242708,-1500.0,0.00024862,2]
[345576155,1734364242717,-210.04367445,0.00024862,10]
[345576156,1734364242726,-411.28381079,0.00024862,10]
[345576157,1734364242735,-234.91453106,0.00024863,10]
[345576158,1734364242743,-11380.06650186,0.00024863,10]
[345576159,1734364242753,-416.06618069,0.00024863,10]
[345576160,1734364242762,-757.66746973,0.00024863,10]
[345576161,1734364242772,-17495.42008644,0.00024863,10]
[345576162,1734364242781,-22522.64694949,0.00024863,10]
[345576163,1734364242790,-1339.57909143,0.00024864,10]
[345576164,1734364242799,-200.0,0.00024864,10]
[345576165,1734364242808,-3773.19290998,0.00024864,10]
[345576166,1734364242817,-687.71404149,0.00024864,10]
[345576167,1734364242827,-200.0,0.00024865,10]
[345576168,1734364242836,-345.10381796,0.00024865,10]
[345576169,1734364242846,-200.0,0.00024865,10]
[345576170,1734364242855,-2821.77709856,0.00024865,10]
[345576171,1734364242865,-345.10381796,0.00024865,10]
[345576172,1734364242874,-150.0,0.00024865,2]
[345576173,1734364242887,-150.0,0.00024865,2]
[345576174,1734364242897,-15905.06070325,0.00024865,10]
[345576175,1734364242906,-574.64154533,0.00024865,10]
[345576176,1734364242917,-1482.48624096,0.00024866,10]
[345576177,1734364242927,-74608.68349,0.00024866,10]
[345576178,1734364242936,-453.70700072,0.00024866,10]
[345576179,1734364242946,-693.44363447,0.00024866,10]
[345576180,1734364242956,-693.44363447,0.00024866,10]
[345576181,1734364242965,-25268.42791727,0.00024866,10]
[345576182,1734364242975,-25235.09458394,0.00024867,10]
[345576183,1734364242985,-1019.18104279,0.00024867,10]
[345576184,1734364242994,-345.10381796,0.00024867,10]
[345576185,1734364243003,-1244.96254348,0.00024867,10]
[345576186,1734364243012,-200.0,0.00024867,10]
[345576187,1734364243021,-18726.24962054,0.00024867,10]
[345576188,1734364243031,-200.0,0.00024867,10]
[345576189,1734364243040,-631.27282586,0.00024868,10]
[345576190,1734364243051,-25235.09458394,0.00024868,10]
[345576191,1734364243060,-42260.49925715,0.00024868,10]
[345576192,1734364243069,-25268.42791727,0.00024869,10]
[345576193,1734364243079,-74608.68349,0.00024869,10]
[345576195,1734364243088,-849.73624369,0.00024869,10]
[345576196,1734364243097,-1500.0,0.00024869,2]
[345576198,1734364243107,-230.92340581,0.00024869,10]
[345576200,1734364243116,-345.10381796,0.0002487,10]
[345576202,1734364243125,-687.71404149,0.0002487,10]
[345576203,1734364243134,-849.73624369,0.0002487,10]
[345576204,1734364243143,-210.04367445,0.0002487,10]
[345576205,1734364243155,-17571.74660673,0.0002487,10]
[345576206,1734364243166,-8648.19168927,0.0002487,10]
[345576207,1734364243176,-964.42438259,0.0002487,10]
[345576208,1734364243186,-89294.62190268,0.0002487,10]
[345576209,1734364243195,-8648.19168927,0.0002487,10]
[345576210,1734364243204,-554.58958292,0.0002487,10]
[345576211,1734364243214,-205.64190539,0.0002487,10]
[345576212,1734364243224,-1019.18104279,0.00024871,10]
[345576213,1734364243234,-818.23479736,0.00024871,10]
[345576214,1734364243243,-150.0,0.00024871,2]
[345576215,1734364243254,-17571.74660673,0.00024872,10]
[345576216,1734364243264,-818.23479736,0.00024872,10]
[345576217,1734364243273,-200.0,0.00024872,10]
[345576218,1734364243283,-574.64154533,0.00024872,10]
[345576219,1734364243293,-1339.57909143,0.00024872,10]